[Event "Live Chess"]
[Site "Chess.com"]
[Date "2024.06.02"]
[Round "-"]
[White "MagnersCarlsberg2870"]
[Black "TigerTank70"]
[Result "0-1"]
[WhiteElo "1807"]
[BlackElo "2235"]
[TimeControl "300"]
[EndTime "2:50:41 PDT"]
[Termination "TigerTank70 won by resignation"]

1. d4 {[%clk 0:04:57.2]} 1... d5 {[%clk 0:04:59]} 2. e3 {[%clk 0:04:55.2]} 2...
Nf6 {[%clk 0:04:56.8]} 3. Bd3 {[%clk 0:04:53.5]} 3... e6 {[%clk 0:04:56.2]} 4.
Nd2 {[%clk 0:04:52.4]} 4... c5 {[%clk 0:04:55.6]} 5. c3 {[%clk 0:04:51.5]} 5...
Nc6 {[%clk 0:04:53.8]} 6. f4 {[%clk 0:04:50.7]} 6... cxd4 {[%clk 0:04:40.6]} 7.
exd4 {[%clk 0:04:46.4]} 7... Qc7 {[%clk 0:04:36.1]} 8. Ndf3 {[%clk 0:04:37.9]}
8... Bd6 {[%clk 0:04:34.9]} 9. Ne5 {[%clk 0:04:36.5]} 9... Ne4 {[%clk
0:04:33.8]} 10. Qg4 {[%clk 0:04:34.6]} 10... f6 {[%clk 0:04:19.2]} 11. Nxc6
{[%clk 0:04:25.3]} 11... bxc6 {[%clk 0:04:17.6]} 12. Nf3 {[%clk 0:04:15.1]}
12... Bd7 {[%clk 0:04:06]} 13. O-O {[%clk 0:04:13.5]} 13... O-O-O {[%clk
0:04:03]} 14. c4 {[%clk 0:04:08.9]} 14... h5 {[%clk 0:03:41.9]} 15. Qh3 {[%clk
0:03:59.3]} 15... Kb8 {[%clk 0:03:40.2]} 16. c5 {[%clk 0:03:55.3]} 16... Be7
{[%clk 0:03:38.5]} 17. g3 {[%clk 0:03:43.8]} 17... g5 {[%clk 0:03:35.9]} 18. Qg2
{[%clk 0:03:41.6]} 18... h4 {[%clk 0:03:32]} 19. Qc2 {[%clk 0:03:32.5]} 19...
hxg3 {[%clk 0:03:27.2]} 20. hxg3 {[%clk 0:03:23.1]} 20... Nxg3 {[%clk
0:03:24.6]} 21. Kg2 {[%clk 0:03:18.2]} 21... gxf4 {[%clk 0:03:21]} 22. Qb3+
{[%clk 0:03:16]} 22... Ka8 {[%clk 0:03:19.7]} 23. Ba6 {[%clk 0:03:13.6]} 23...
Rdg8 {[%clk 0:03:17.6]} 24. Bxf4 {[%clk 0:03:10.6]} 24... Ne4+ {[%clk
0:03:02.2]} 25. Ng5 {[%clk 0:03:07.9]} 25... e5 {[%clk 0:02:57.5]} 26. dxe5
{[%clk 0:02:52.9]} 26... fxe5 {[%clk 0:02:55.5]} 27. Bxe5 {[%clk 0:02:51.6]}
27... Rxg5+ {[%clk 0:02:53.6]} 28. Kf3 {[%clk 0:02:44.1]} 28... Rxe5 {[%clk
0:02:50.1]} 0-1

[Event "Live Chess"]
[Site "Chess.com"]
[Date "2024.06.02"]
[Round "-"]
[White "Brooms1989"]
[Black "AlanBstard10"]
[Result "1-0"]
[WhiteElo "1196"]
[BlackElo "1224"]
[TimeControl "300"]
[EndTime "2:50:41 PDT"]
[Termination "Brooms1989 won by checkmate"]

1. e4 {[%clk 0:04:57.4]} 1... d5 {[%clk 0:04:56]} 2. exd5 {[%clk 0:04:56.1]}
2... Nf6 {[%clk 0:04:53.2]} 3. d4 {[%clk 0:04:54.4]} 3... Qxd5 {[%clk
0:04:50.9]} 4. c4 {[%clk 0:04:52.5]} 4... Qe4+ {[%clk 0:04:46.7]} 5. Be3 {[%clk
0:04:40.6]} 5... e6 {[%clk 0:04:40.9]} 6. Nc3 {[%clk 0:04:37.9]} 6... Qc6 {[%clk
0:04:35.3]} 7. Nf3 {[%clk 0:04:32.3]} 7... Ne4 {[%clk 0:04:33.6]} 8. Nxe4 {[%clk
0:04:22]} 8... Qxe4 {[%clk 0:04:32.3]} 9. Bd3 {[%clk 0:04:20.6]} 9... Qg4 {[%clk
0:04:29.9]} 10. O-O {[%clk 0:04:17.5]} 10... Bd6 {[%clk 0:04:25.9]} 11. h3
{[%clk 0:04:15.4]} 11... Qh5 {[%clk 0:04:20.3]} 12. Be2 {[%clk 0:04:09.7]} 12...
Qa5 {[%clk 0:04:15.5]} 13. a3 {[%clk 0:03:59.3]} 13... O-O {[%clk 0:04:14.2]}
14. b4 {[%clk 0:03:57.9]} 14... Qb6 {[%clk 0:04:07.3]} 15. c5 {[%clk 0:03:56.5]}
15... Bxc5 {[%clk 0:04:02.8]} 16. dxc5 {[%clk 0:03:54.8]} 16... Qc6 {[%clk
0:03:58.2]} 17. Qc2 {[%clk 0:03:46.5]} 17... b6 {[%clk 0:03:56.1]} 18. Bd3
{[%clk 0:03:40]} 18... g6 {[%clk 0:03:54.2]} 19. Bh6 {[%clk 0:03:36.4]} 19...
Rd8 {[%clk 0:03:49.4]} 20. Qc3 {[%clk 0:03:30.1]} 20... f6 {[%clk 0:02:50.8]}
21. Qxf6 {[%clk 0:03:26.4]} 21... Rd7 {[%clk 0:02:47.2]} 22. Ne5 {[%clk
0:03:22]} 22... Qd5 {[%clk 0:02:32]} 23. Qf8# {[%clk 0:03:18.6]} 1-0

[Event "Live Chess"]
[Site "Chess.com"]
[Date "2024.06.02"]
[Round "-"]
[White "McFim"]
[Black "raimundklein"]
[Result "1-0"]
[WhiteElo "1702"]
[BlackElo "1559"]
[TimeControl "300"]
[EndTime "2:50:43 PDT"]
[Termination "McFim won on time"]

1. e4 {[%clk 0:04:58.2]} 1... c6 {[%clk 0:04:58.5]} 2. d4 {[%clk 0:04:56.5]}
2... d5 {[%clk 0:04:57.7]} 3. exd5 {[%clk 0:04:56.4]} 3... cxd5 {[%clk
0:04:57.6]} 4. Bd3 {[%clk 0:04:55.4]} 4... Nc6 {[%clk 0:04:53.9]} 5. c3 {[%clk
0:04:54.2]} 5... g6 {[%clk 0:04:51.9]} 6. Bf4 {[%clk 0:04:52.8]} 6... Bf5 {[%clk
0:04:50.4]} 7. Bxf5 {[%clk 0:04:50.4]} 7... gxf5 {[%clk 0:04:50.3]} 8. Ne2
{[%clk 0:04:49.8]} 8... e6 {[%clk 0:04:41.5]} 9. Nd2 {[%clk 0:04:44.1]} 9... Nf6
{[%clk 0:04:40.2]} 10. h3 {[%clk 0:04:42.9]} 10... Ne4 {[%clk 0:04:35.3]} 11. f3
{[%clk 0:04:40.1]} 11... Nd6 {[%clk 0:04:27.4]} 12. Qc2 {[%clk 0:04:29.1]} 12...
Bg7 {[%clk 0:04:24.6]} 13. g4 {[%clk 0:04:15.7]} 13... fxg4 {[%clk 0:04:22.3]}
14. hxg4 {[%clk 0:04:13.5]} 14... f5 {[%clk 0:03:58.3]} 15. Bh6 {[%clk
0:03:57.8]} 15... Qf6 {[%clk 0:03:52.4]} 16. Bxg7 {[%clk 0:03:49.4]} 16... Qxg7
{[%clk 0:03:50.9]} 17. gxf5 {[%clk 0:03:46.6]} 17... Nxf5 {[%clk 0:03:47.9]} 18.
Qd3 {[%clk 0:03:35.7]} 18... O-O-O {[%clk 0:03:40.7]} 19. O-O-O {[%clk
0:03:33.3]} 19... Kb8 {[%clk 0:03:31.9]} 20. Rdg1 {[%clk 0:03:28.3]} 20... Qf6
{[%clk 0:03:24.1]} 21. Rh3 {[%clk 0:03:17.6]} 21... h5 {[%clk 0:03:12.4]} 22.
Rgh1 {[%clk 0:03:10.5]} 22... h4 {[%clk 0:03:11.4]} 23. f4 {[%clk 0:02:57.8]}
23... Rdg8 {[%clk 0:02:32.9]} 24. Nf3 {[%clk 0:02:51.7]} 24... Rg2 {[%clk
0:02:19.5]} 25. Ng5 {[%clk 0:01:43]} 25... Rc8 {[%clk 0:01:19.9]} 26. Qf3 {[%clk
0:01:24.4]} 26... Rg3 {[%clk 0:00:59.3]} 27. Nxg3 {[%clk 0:01:21.4]} 27... hxg3
{[%clk 0:00:57.8]} 28. Rh6 {[%clk 0:01:08.8]} 28... Qd8 {[%clk 0:00:44.1]} 29.
Rxe6 {[%clk 0:01:05.1]} 29... Ncxd4 {[%clk 0:00:42]} 30. Qg4 {[%clk 0:00:50.5]}
30... Qa5 {[%clk 0:00:32.8]} 31. Kb1 {[%clk 0:00:40]} 31... Qa4 {[%clk
0:00:26.3]} 32. Rc1 {[%clk 0:00:33.5]} 32... Nxe6 {[%clk 0:00:10.6]} 33. Nxe6
{[%clk 0:00:30.8]} 33... Ne3 {[%clk 0:00:08]} 34. Qxg3 {[%clk 0:00:27.7]} 34...
Nc4 {[%clk 0:00:05.7]} 35. f5+ {[%clk 0:00:24.8]} 1-0

[Event "Live Chess"]
[Site "Chess.com"]
[Date "2024.06.02"]
[Round "-"]
[White "Purple1szed"]
[Black "AlexanderMatlak"]
[Result "1-0"]
[WhiteElo "2087"]
[BlackElo "2398"]
[TimeControl "300"]
[EndTime "2:51:20 PDT"]
[Termination "Purple1szed won by resignation"]

1. e4 {[%clk 0:04:56.1]} 1... c5 {[%clk 0:04:58.9]} 2. c3 {[%clk 0:04:55.4]}
2... Nf6 {[%clk 0:04:57.3]} 3. e5 {[%clk 0:04:54.5]} 3... Nd5 {[%clk 0:04:56.6]}
4. d4 {[%clk 0:04:54.4]} 4... cxd4 {[%clk 0:04:55.9]} 5. cxd4 {[%clk 0:04:54.3]}
5... d6 {[%clk 0:04:55.3]} 6. Nf3 {[%clk 0:04:53.3]} 6... Nc6 {[%clk 0:04:54.5]}
7. Bc4 {[%clk 0:04:52]} 7... Nb6 {[%clk 0:04:53]} 8. Bb3 {[%clk 0:04:51.6]} 8...
dxe5 {[%clk 0:04:50.7]} 9. Nxe5 {[%clk 0:04:51.5]} 9... Nxe5 {[%clk 0:04:45]}
10. dxe5 {[%clk 0:04:51.4]} 10... Qxd1+ {[%clk 0:04:43.7]} 11. Bxd1 {[%clk
0:04:51.3]} 11... e6 {[%clk 0:04:42.5]} 12. O-O {[%clk 0:04:49.4]} 12... Bd7
{[%clk 0:04:41.5]} 13. Bf3 {[%clk 0:04:47.9]} 13... Bc6 {[%clk 0:04:40.6]} 14.
Bxc6+ {[%clk 0:04:47.2]} 14... bxc6 {[%clk 0:04:40.5]} 15. Nc3 {[%clk
0:04:45.4]} 15... Be7 {[%clk 0:04:37.2]} 16. Ne4 {[%clk 0:04:43.2]} 16... O-O
{[%clk 0:04:34]} 17. Nd6 {[%clk 0:04:41.8]} 17... Bxd6 {[%clk 0:04:31.5]} 18.
exd6 {[%clk 0:04:41.7]} 18... Rfd8 {[%clk 0:04:28.7]} 19. Bf4 {[%clk 0:04:40.1]}
19... f6 {[%clk 0:04:23.7]} 20. Rfd1 {[%clk 0:04:36.9]} 20... e5 {[%clk
0:04:22.3]} 21. Be3 {[%clk 0:04:36.6]} 21... Nc4 {[%clk 0:04:08.2]} 22. Rac1
{[%clk 0:04:10.5]} 22... Nxe3 {[%clk 0:03:47.6]} 23. fxe3 {[%clk 0:04:10.4]}
23... Rac8 {[%clk 0:03:46.9]} 24. Rc3 {[%clk 0:03:57.5]} 24... Kf7 {[%clk
0:03:39.5]} 25. e4 {[%clk 0:03:51.7]} 25... Ke6 {[%clk 0:03:34.2]} 26. Rcd3
{[%clk 0:03:50.5]} 26... Rd7 {[%clk 0:03:33.6]} 27. Kf2 {[%clk 0:03:44.6]} 27...
Rcd8 {[%clk 0:03:32.7]} 28. Ra3 {[%clk 0:03:43.6]} 28... Rb8 {[%clk 0:03:24.5]}
29. b3 {[%clk 0:03:39.3]} 29... Rbb7 {[%clk 0:03:17.5]} 30. Ra6 {[%clk
0:03:35.4]} 30... Rxd6 {[%clk 0:03:15.3]} 31. Rxd6+ {[%clk 0:03:31.1]} 31...
Kxd6 {[%clk 0:03:15.2]} 32. Ke3 {[%clk 0:03:24.5]} 32... g6 {[%clk 0:03:06.6]}
33. Ra4 {[%clk 0:03:23.4]} 33... f5 {[%clk 0:03:04.3]} 34. g3 {[%clk 0:03:22.9]}
34... Rf7 {[%clk 0:02:44.3]} 35. Rc4 {[%clk 0:03:19.4]} 35... f4+ {[%clk
0:02:38.1]} 36. gxf4 {[%clk 0:03:18.6]} 36... exf4+ {[%clk 0:02:37]} 37. Kf3
{[%clk 0:03:18.5]} 37... g5 {[%clk 0:02:35.9]} 38. h3 {[%clk 0:03:16.7]} 38...
h5 {[%clk 0:02:33.6]} 39. Rc1 {[%clk 0:03:08]} 39... a5 {[%clk 0:02:21.2]} 40.
Rg1 {[%clk 0:03:04.6]} 40... Ke5 {[%clk 0:02:16.7]} 41. Rxg5+ {[%clk 0:03:00.8]}
41... Kd4 {[%clk 0:02:12.9]} 42. Rxa5 {[%clk 0:02:58.6]} 42... c5 {[%clk
0:02:08.6]} 43. Ra4+ {[%clk 0:02:44.6]} 43... Kd3 {[%clk 0:02:06.1]} 44. Rc4
{[%clk 0:02:42]} 44... Ra7 {[%clk 0:01:58.1]} 45. Kxf4 {[%clk 0:02:39.4]} 45...
Rxa2 {[%clk 0:01:56.7]} 46. Rxc5 {[%clk 0:02:37.3]} 46... Rh2 {[%clk 0:01:54.9]}
47. Rxh5 {[%clk 0:02:34.4]} 47... Kc3 {[%clk 0:01:54.3]} 48. e5 {[%clk
0:02:28.7]} 48... Kxb3 {[%clk 0:01:50.6]} 49. e6 {[%clk 0:02:27.8]} 49... Rf2+
{[%clk 0:01:48.4]} 50. Ke5 {[%clk 0:02:26.6]} 50... Kc4 {[%clk 0:01:45.6]} 51.
Kd6 {[%clk 0:02:21]} 1-0

[Event "Live Chess"]
[Site "Chess.com"]
[Date "2024.06.02"]
[Round "-"]
[White "elis06"]
[Black "Queensandpawns"]
[Result "1-0"]
[WhiteElo "2232"]
[BlackElo "2264"]
[TimeControl "300"]
[EndTime "2:51:30 PDT"]
[Termination "elis06 won on time"]

1. e4 {[%clk 0:04:56.3]} 1... d5 {[%clk 0:04:57.7]} 2. exd5 {[%clk 0:04:53.9]}
2... c6 {[%clk 0:04:57.6]} 3. d4 {[%clk 0:04:51]} 3... Nf6 {[%clk 0:04:56.8]} 4.
Nf3 {[%clk 0:04:48.4]} 4... Bg4 {[%clk 0:04:55.6]} 5. Bd3 {[%clk 0:04:47.2]}
5... Qxd5 {[%clk 0:04:52.8]} 6. Be3 {[%clk 0:04:39.4]} 6... Nbd7 {[%clk
0:04:51.1]} 7. Nbd2 {[%clk 0:04:38.1]} 7... O-O-O {[%clk 0:04:49.1]} 8. c4
{[%clk 0:04:35.2]} 8... Qh5 {[%clk 0:04:47.8]} 9. h3 {[%clk 0:04:33.5]} 9... e5
{[%clk 0:04:46.2]} 10. d5 {[%clk 0:04:19.3]} 10... cxd5 {[%clk 0:04:19.1]} 11.
cxd5 {[%clk 0:04:14.7]} 11... Nxd5 {[%clk 0:04:17.3]} 12. Rc1+ {[%clk
0:04:09.2]} 12... Kb8 {[%clk 0:04:12.9]} 13. Bxa7+ {[%clk 0:03:49.7]} 13... Kxa7
{[%clk 0:04:11.3]} 14. Qa4+ {[%clk 0:03:48.6]} 14... Kb8 {[%clk 0:04:11]} 15.
Qxg4 {[%clk 0:03:46.8]} 15... Qxg4 {[%clk 0:04:10.6]} 16. hxg4 {[%clk
0:03:46.7]} 16... Nf4 {[%clk 0:04:10.3]} 17. Bf1 {[%clk 0:03:39.8]} 17... Nc5
{[%clk 0:04:08.3]} 18. Rc3 {[%clk 0:03:26.4]} 18... e4 {[%clk 0:04:03.5]} 19.
Ne5 {[%clk 0:03:18.6]} 19... Ncd3+ {[%clk 0:03:58.9]} 20. Nxd3 {[%clk
0:03:17.1]} 20... Nxd3+ {[%clk 0:03:55.2]} 21. Bxd3 {[%clk 0:03:16.2]} 21...
exd3 {[%clk 0:03:55.1]} 22. Rh3 {[%clk 0:03:11.7]} 22... Re8+ {[%clk 0:03:30.4]}
23. Kd1 {[%clk 0:03:02.8]} 23... Re2 {[%clk 0:03:27.1]} 24. Rhxd3 {[%clk
0:03:00.1]} 24... Rxf2 {[%clk 0:03:25.6]} 25. Rd8+ {[%clk 0:02:55.3]} 25... Ka7
{[%clk 0:03:20]} 26. Rcc8 {[%clk 0:02:50.9]} 26... Bb4 {[%clk 0:03:06.1]} 27.
Rxh8 {[%clk 0:02:45.7]} 27... Rxd2+ {[%clk 0:03:04.8]} 28. Kc1 {[%clk
0:02:43.7]} 28... Rxg2 {[%clk 0:03:04.7]} 29. Rxh7 {[%clk 0:02:41.1]} 29... Rxg4
{[%clk 0:03:03.3]} 30. Rg8 {[%clk 0:02:38.4]} 30... Rg1+ {[%clk 0:02:31.6]} 31.
Kc2 {[%clk 0:02:36.1]} 31... g5 {[%clk 0:02:15.1]} 32. Rxf7 {[%clk 0:02:33.4]}
32... Rg2+ {[%clk 0:01:52]} 33. Kb3 {[%clk 0:02:31.7]} 33... Bc5 {[%clk
0:01:50.7]} 34. Rgg7 {[%clk 0:01:56.6]} 34... Bd4 {[%clk 0:01:49.8]} 35. Rh7
{[%clk 0:01:39.6]} 35... Rxb2+ {[%clk 0:01:43.4]} 36. Ka3 {[%clk 0:01:38.4]}
36... Rb6 {[%clk 0:01:38.7]} 37. Rh5 {[%clk 0:01:28.6]} 37... Be3 {[%clk
0:00:51.9]} 38. Ka4 {[%clk 0:01:18]} 38... Ka6 {[%clk 0:00:41.4]} 39. Rh3 {[%clk
0:01:06.4]} 39... Bc5 {[%clk 0:00:12.1]} 40. Rb3 {[%clk 0:01:00.2]} 40... Re6
{[%clk 0:00:07]} 41. Rbf3 {[%clk 0:00:51.2]} 41... Re4+ {[%clk 0:00:06.9]} 42.
Kb3 {[%clk 0:00:49.8]} 42... Rb4+ {[%clk 0:00:03.2]} 43. Kc2 {[%clk 0:00:49]}
43... g4 {[%clk 0:00:03.1]} 44. R3f6+ {[%clk 0:00:48]} 44... Rb6 {[%clk
0:00:03]} 45. Rxb6+ {[%clk 0:00:46.5]} 45... Bxb6 {[%clk 0:00:02.9]} 46. Rg7
{[%clk 0:00:45.8]} 46... Ka5 {[%clk 0:00:02.2]} 47. Rxg4 {[%clk 0:00:44.8]}
47... Ba7 {[%clk 0:00:02.1]} 48. Kb3 {[%clk 0:00:44.2]} 48... b5 {[%clk
0:00:02]} 49. Rg8 {[%clk 0:00:42.6]} 49... Bb6 {[%clk 0:00:01.5]} 50. Ra8+
{[%clk 0:00:40.1]} 50... Ba7 {[%clk 0:00:01.4]} 51. Rxa7+ {[%clk 0:00:39.4]}
51... Kb6 {[%clk 0:00:01.3]} 52. Rh7 {[%clk 0:00:38.6]} 52... Kc5 {[%clk
0:00:01.2]} 53. Rh5+ {[%clk 0:00:37.4]} 53... Kb6 {[%clk 0:00:01.1]} 54. Kb4
{[%clk 0:00:37]} 54... Ka7 {[%clk 0:00:00.8]} 55. Rxb5 {[%clk 0:00:36]} 55...
Ka8 {[%clk 0:00:00.7]} 56. Rh5 {[%clk 0:00:35.7]} 56... Ka7 {[%clk 0:00:00.6]}
57. Rh6 {[%clk 0:00:34.9]} 57... Ka8 {[%clk 0:00:00.5]} 58. Kb5 {[%clk
0:00:34.4]} 58... Ka7 {[%clk 0:00:00.4]} 59. Rg6 {[%clk 0:00:32.6]} 59... Kb8
{[%clk 0:00:00.3]} 60. Rg7 {[%clk 0:00:31.6]} 60... Kc8 {[%clk 0:00:00.2]} 61.
Rh7 {[%clk 0:00:29.7]} 61... Kd8 {[%clk 0:00:00.1]} 62. a4 {[%clk 0:00:28.5]}
1-0

[Event "Live Chess"]
[Site "Chess.com"]
[Date "2024.06.02"]
[Round "-"]
[White "Duke_of_Bebington"]
[Black "LL220284LL"]
[Result "0-1"]
[WhiteElo "1637"]
[BlackElo "2507"]
[TimeControl "300"]
[EndTime "2:51:38 PDT"]
[Termination "LL220284LL won by checkmate"]

1. e4 {[%clk 0:04:58.1]} 1... g6 {[%clk 0:04:59.3]} 2. d4 {[%clk 0:04:56.2]}
2... Bg7 {[%clk 0:04:58.8]} 3. Be3 {[%clk 0:04:53]} 3... c6 {[%clk 0:04:58.2]}
4. Bd3 {[%clk 0:04:50.1]} 4... d6 {[%clk 0:04:56.2]} 5. Ne2 {[%clk 0:04:48.7]}
5... Nf6 {[%clk 0:04:55.5]} 6. f3 {[%clk 0:04:44.9]} 6... Nbd7 {[%clk
0:04:53.4]} 7. Nbc3 {[%clk 0:04:43.9]} 7... b5 {[%clk 0:04:51]} 8. a3 {[%clk
0:04:42.4]} 8... Rb8 {[%clk 0:04:49.4]} 9. Qd2 {[%clk 0:04:41.3]} 9... O-O
{[%clk 0:04:45.8]} 10. Bh6 {[%clk 0:04:39.2]} 10... a6 {[%clk 0:04:42.7]} 11.
Bxg7 {[%clk 0:04:37.3]} 11... Kxg7 {[%clk 0:04:42.6]} 12. g4 {[%clk 0:04:35.2]}
12... c5 {[%clk 0:04:41]} 13. dxc5 {[%clk 0:04:29.5]} 13... Nxc5 {[%clk
0:04:39.2]} 14. h4 {[%clk 0:04:17.2]} 14... h5 {[%clk 0:04:33.2]} 15. gxh5
{[%clk 0:03:57.4]} 15... Nxh5 {[%clk 0:04:33.1]} 16. Nf4 {[%clk 0:03:49.5]}
16... Nxf4 {[%clk 0:04:26.4]} 17. Qxf4 {[%clk 0:03:47.9]} 17... Nxd3+ {[%clk
0:04:22.5]} 18. cxd3 {[%clk 0:03:47.8]} 18... e5 {[%clk 0:04:21.4]} 19. Qg3
{[%clk 0:03:37.4]} 19... Be6 {[%clk 0:04:15.3]} 20. Kd2 {[%clk 0:03:27.1]} 20...
Qf6 {[%clk 0:04:12.7]} 21. Rag1 {[%clk 0:03:22.2]} 21... b4 {[%clk 0:04:08.2]}
22. axb4 {[%clk 0:03:10.7]} 22... Rxb4 {[%clk 0:04:08.1]} 23. Ke3 {[%clk
0:03:01]} 23... d5 {[%clk 0:04:02.3]} 24. exd5 {[%clk 0:02:58]} 24... Bf5 {[%clk
0:03:58.4]} 25. Ne4 {[%clk 0:02:54.1]} 25... Qb6+ {[%clk 0:03:56.9]} 26. Ke2
{[%clk 0:02:44.5]} 26... Rxb2+ {[%clk 0:03:55.2]} 27. Nd2 {[%clk 0:02:44]} 27...
Bxd3+ {[%clk 0:03:51.9]} 28. Kxd3 {[%clk 0:02:40.7]} 28... Qd4+ {[%clk
0:03:50.5]} 29. Ke2 {[%clk 0:02:39.8]} 29... Qxd2+ {[%clk 0:03:48.8]} 30. Kf1
{[%clk 0:02:39.2]} 30... Rb1+ {[%clk 0:03:48.3]} 31. Qe1 {[%clk 0:02:37.2]}
31... Rxe1# {[%clk 0:03:48.2]} 0-1

[Event "Live Chess"]
[Site "Chess.com"]
[Date "2024.06.02"]
[Round "-"]
[White "KeithArkell"]
[Black "ameetghasi100"]
[Result "1/2-1/2"]
[WhiteElo "2417"]
[BlackElo "2787"]
[TimeControl "300"]
[EndTime "2:51:39 PDT"]
[Termination "Game drawn by repetition"]

1. d4 {[%clk 0:04:57.9]} 1... Nf6 {[%clk 0:04:54.9]} 2. Nf3 {[%clk 0:04:52.8]}
2... g6 {[%clk 0:04:54.4]} 3. c4 {[%clk 0:04:52.1]} 3... Bg7 {[%clk 0:04:53.9]}
4. g3 {[%clk 0:04:51.7]} 4... O-O {[%clk 0:04:53.5]} 5. Bg2 {[%clk 0:04:51.3]}
5... d6 {[%clk 0:04:52.9]} 6. O-O {[%clk 0:04:50.7]} 6... Nbd7 {[%clk
0:04:52.1]} 7. d5 {[%clk 0:04:50.2]} 7... a5 {[%clk 0:04:50.7]} 8. Nc3 {[%clk
0:04:48.4]} 8... Nc5 {[%clk 0:04:49]} 9. Be3 {[%clk 0:04:47.5]} 9... b6 {[%clk
0:04:47.1]} 10. Nd4 {[%clk 0:04:46.2]} 10... Ng4 {[%clk 0:04:44.4]} 11. Bf4
{[%clk 0:04:40.9]} 11... Bd7 {[%clk 0:04:38.3]} 12. h3 {[%clk 0:04:39.5]} 12...
Ne5 {[%clk 0:04:36.9]} 13. b3 {[%clk 0:04:38.8]} 13... e6 {[%clk 0:04:29.6]} 14.
dxe6 {[%clk 0:04:37.5]} 14... fxe6 {[%clk 0:04:29.5]} 15. Rc1 {[%clk 0:04:35.3]}
15... h6 {[%clk 0:04:26.8]} 16. Be3 {[%clk 0:04:33]} 16... Qe7 {[%clk 0:04:19]}
17. Bxa8 {[%clk 0:04:30.6]} 17... Rxa8 {[%clk 0:04:11.6]} 18. f4 {[%clk
0:04:29.8]} 18... Nf7 {[%clk 0:04:09.3]} 19. Nf3 {[%clk 0:04:27.4]} 19... Bc6
{[%clk 0:04:04.3]} 20. Bd4 {[%clk 0:04:25.6]} 20... e5 {[%clk 0:04:02.7]} 21.
fxe5 {[%clk 0:04:21]} 21... dxe5 {[%clk 0:03:54.1]} 22. Be3 {[%clk 0:04:20.1]}
22... Rd8 {[%clk 0:03:34.1]} 23. Qc2 {[%clk 0:04:18.6]} 23... e4 {[%clk
0:03:31.8]} 24. Nh4 {[%clk 0:04:06.9]} 24... Qe6 {[%clk 0:03:25.7]} 25. Kh2
{[%clk 0:04:02.8]} 25... Bd7 {[%clk 0:03:05.1]} 26. g4 {[%clk 0:04:02.1]} 26...
h5 {[%clk 0:03:03.6]} 27. Rg1 {[%clk 0:03:54.5]} 27... Qf6 {[%clk 0:02:38.6]}
28. Ng2 {[%clk 0:03:08.7]} 28... hxg4 {[%clk 0:02:22.8]} 29. Rgf1 {[%clk
0:02:56.1]} 29... Qd6+ {[%clk 0:01:50.5]} 30. Bf4 {[%clk 0:02:53.9]} 30... g3+
{[%clk 0:01:45.7]} 31. Kxg3 {[%clk 0:02:49.6]} 31... Qe6 {[%clk 0:01:44.2]} 32.
Rh1 {[%clk 0:02:46.9]} 32... g5 {[%clk 0:01:41.3]} 33. Be3 {[%clk 0:02:29.3]}
33... Qf5 {[%clk 0:01:21.8]} 34. Kh2 {[%clk 0:02:05.8]} 34... Qxh3+ {[%clk
0:01:11.5]} 35. Kg1 {[%clk 0:02:05.1]} 35... Qg3 {[%clk 0:01:09.7]} 36. Nxe4
{[%clk 0:01:57.6]} 36... Nxe4 {[%clk 0:01:08.1]} 37. Qxe4 {[%clk 0:01:56.8]}
37... Re8 {[%clk 0:00:51.9]} 38. Qf3 {[%clk 0:01:54.4]} 38... Qe5 {[%clk
0:00:50.2]} 39. Rd1 {[%clk 0:01:51.3]} 39... Bf5 {[%clk 0:00:41.9]} 40. Bd4
{[%clk 0:01:47.2]} 40... Qxe2 {[%clk 0:00:37.3]} 41. Qxe2 {[%clk 0:01:41.1]}
41... Rxe2 {[%clk 0:00:36.8]} 42. Bxg7 {[%clk 0:01:40.1]} 42... Kxg7 {[%clk
0:00:36.7]} 43. Rh2 {[%clk 0:01:29.7]} 43... Rxa2 {[%clk 0:00:36.2]} 44. Ne3
{[%clk 0:01:29]} 44... Rxh2 {[%clk 0:00:28.3]} 45. Kxh2 {[%clk 0:01:28.9]} 45...
Be6 {[%clk 0:00:27]} 46. Nd5 {[%clk 0:01:24.6]} 46... Bxd5 {[%clk 0:00:24.1]}
47. cxd5 {[%clk 0:01:21.5]} 47... Nd6 {[%clk 0:00:22.1]} 48. Rc1 {[%clk
0:01:16.2]} 48... Nb5 {[%clk 0:00:21.5]} 49. Rc6 {[%clk 0:01:13.5]} 49... Kf7
{[%clk 0:00:20.8]} 50. Kg3 {[%clk 0:01:12.8]} 50... Ke7 {[%clk 0:00:20.2]} 51.
Kg4 {[%clk 0:01:12.1]} 51... Kd7 {[%clk 0:00:19.7]} 52. Kxg5 {[%clk 0:00:59.2]}
52... Nd4 {[%clk 0:00:19.3]} 53. Rc3 {[%clk 0:00:56.1]} 53... Kd6 {[%clk
0:00:19]} 54. Rc4 {[%clk 0:00:47]} 54... Kxd5 {[%clk 0:00:18.9]} 55. Rxc7 {[%clk
0:00:45.8]} 55... Nxb3 {[%clk 0:00:18.6]} 56. Kf4 {[%clk 0:00:39.7]} 56... Nc5
{[%clk 0:00:18]} 57. Ke3 {[%clk 0:00:38.6]} 57... b5 {[%clk 0:00:17.6]} 58. Kd2
{[%clk 0:00:35.9]} 58... b4 {[%clk 0:00:17.1]} 59. Kc2 {[%clk 0:00:33.1]} 59...
a4 {[%clk 0:00:16.2]} 60. Rc8 {[%clk 0:00:31.4]} 60... Kc4 {[%clk 0:00:16.1]}
61. Rc7 {[%clk 0:00:30.2]} 61... a3 {[%clk 0:00:16]} 62. Ra7 {[%clk 0:00:24]}
62... b3+ {[%clk 0:00:15.9]} 63. Kb1 {[%clk 0:00:22.8]} 63... Kb4 {[%clk
0:00:15.8]} 64. Ra8 {[%clk 0:00:21.5]} 64... Na4 {[%clk 0:00:14.9]} 65. Rb8+
{[%clk 0:00:20.3]} 65... Kc4 {[%clk 0:00:13.8]} 66. Rc8+ {[%clk 0:00:19.8]}
66... Kd4 {[%clk 0:00:12.9]} 67. Rb8 {[%clk 0:00:18.1]} 67... Nc3+ {[%clk
0:00:11.1]} 68. Kc1 {[%clk 0:00:16.2]} 68... Kc4 {[%clk 0:00:10.7]} 69. Rc8+
{[%clk 0:00:15]} 69... Kb4 {[%clk 0:00:09.7]} 70. Rb8+ {[%clk 0:00:14.5]} 70...
Nb5 {[%clk 0:00:08.3]} 71. Kb1 {[%clk 0:00:13.8]} 71... a2+ {[%clk 0:00:06.9]}
72. Kb2 {[%clk 0:00:12.7]} 72... Ka4 {[%clk 0:00:05.2]} 73. Ra8+ {[%clk
0:00:10.6]} 73... Kb4 {[%clk 0:00:05.1]} 74. Rb8 {[%clk 0:00:10.1]} 74... Ka4
{[%clk 0:00:04.5]} 75. Ra8+ {[%clk 0:00:09.1]} 75... Kb4 {[%clk 0:00:04.4]} 76.
Rb8 {[%clk 0:00:08.8]} 1/2-1/2

[Event "Live Chess"]
[Site "Chess.com"]
[Date "2024.06.02"]
[Round "-"]
[White "Pandreq"]
[Black "CheckThis4"]
[Result "0-1"]
[WhiteElo "1209"]
[BlackElo "2698"]
[TimeControl "300"]
[EndTime "2:51:39 PDT"]
[Termination "CheckThis4 won by resignation"]

1. d4 {[%clk 0:04:56.3]} 1... Nf6 {[%clk 0:04:57.3]} 2. c4 {[%clk 0:04:55.2]}
2... g6 {[%clk 0:04:56.7]} 3. Nc3 {[%clk 0:04:53.9]} 3... d5 {[%clk 0:04:55.2]}
4. cxd5 {[%clk 0:04:50.8]} 4... Nxd5 {[%clk 0:04:55.1]} 5. e4 {[%clk 0:04:50.2]}
5... Nxc3 {[%clk 0:04:54.3]} 6. bxc3 {[%clk 0:04:50.1]} 6... Bg7 {[%clk
0:04:53.9]} 7. Nf3 {[%clk 0:04:48.9]} 7... c5 {[%clk 0:04:52.7]} 8. Bb2 {[%clk
0:04:46.8]} 8... Qa5 {[%clk 0:04:46.9]} 9. Qc2 {[%clk 0:04:41]} 9... cxd4 {[%clk
0:04:44.4]} 10. e5 {[%clk 0:04:20.8]} 10... Nc6 {[%clk 0:04:40.2]} 11. O-O-O
{[%clk 0:04:07.4]} 11... Bf5 {[%clk 0:04:25.4]} 12. Qd2 {[%clk 0:04:01.7]} 12...
Rc8 {[%clk 0:04:18.6]} 13. a3 {[%clk 0:03:55]} 13... O-O {[%clk 0:04:14.9]} 14.
Bd3 {[%clk 0:03:50.9]} 14... Bxd3 {[%clk 0:04:10.8]} 15. Qxd3 {[%clk 0:03:49.1]}
15... dxc3 {[%clk 0:04:02.8]} 16. Bxc3 {[%clk 0:03:38.4]} 16... Nxe5 {[%clk
0:03:50.3]} 17. Nxe5 {[%clk 0:03:25.6]} 17... Rxc3+ {[%clk 0:03:46.1]} 0-1